lending/lending_fUSD_20250131
["ID","MTS","AMOUNT","RATE_DAILY","PERIOD"]
[351084620,1738329039836,-500.0,0.00016438,2]
[351084621,1738329039846,-500.0,0.00016438,2]
[351084622,1738329039855,-710.68,0.00016438,2]
[351084623,1738329039865,-500.0,0.00016438,2]
[351084624,1738329039877,-506.24,0.00016438,2]
[351084625,1738329039887,-1095.34,0.00016438,2]
[351084626,1738329039896,-500.0,0.00016438,2]
[351084627,1738329039905,-500.0,0.00016438,2]
[351084628,1738329039914,-500.0,0.00016438,2]
[351084629,1738329039923,-500.0,0.00016438,2]
[351084630,1738329039932,-914.93,0.00016438,2]
[351084631,1738329039941,-500.0,0.00016438,2]
[351084632,1738329039950,-759.24,0.00016438,2]
[351084633,1738329039960,-516.98,0.00016438,2]
[351084634,1738329039968,-500.0,0.00016438,2]
[351084635,1738329039977,-206.85823922,0.00016438,2]
[351084636,1738329039987,-500.0,0.00016438,2]
[351084637,1738329039996,-500.0,0.00016438,2]
[351084638,1738329040005,-500.0,0.00016438,2]
[351084639,1738329040014,-973.51,0.00016438,2]
[351084640,1738329040023,-500.0,0.00016438,2]
[351084641,1738329040032,-500.0,0.00016438,2]
[351084642,1738329040041,-500.0,0.00016438,2]
[351084643,1738329040050,-516.4605593,0.00016438,2]
[351084644,1738329040059,-500.0,0.00016438,2]
[351084645,1738329040068,-596.44,0.00016438,2]
[351084646,1738329040076,-500.0,0.00016438,2]
[351084647,1738329040086,-500.0,0.00016438,2]
[351084648,1738329040095,-500.0,0.00016438,2]
[351084649,1738329040104,-500.0,0.00016438,2]
[351084650,1738329040116,-500.0,0.00016438,2]
[351084651,1738329040129,-500.0,0.00016438,2]
[351084652,1738329040138,-502.78828362,0.00016438,2]
[351084653,1738329040148,-500.0,0.00016438,2]
[351084654,1738329040159,-500.0,0.00016438,2]
[351084655,1738329040168,-500.0,0.00016438,2]
[351084656,1738329040178,-500.0,0.00016438,2]
[351084657,1738329040188,-500.0,0.00016438,2]
[351084658,1738329040201,-500.0,0.00016438,2]
[351084659,1738329040210,-500.0,0.00016438,2]
[351084660,1738329040220,-503.29666369,0.00016438,2]
[351084661,1738329040230,-500.0,0.00016438,2]
[351084662,1738329040240,-500.0,0.00016438,2]
[351084663,1738329040251,-500.0,0.00016438,2]
[351084664,1738329040260,-500.0,0.00016438,2]
[351084665,1738329040270,-500.0,0.00016438,2]
[351084666,1738329040280,-500.0,0.00016438,2]
[351084667,1738329040290,-500.0,0.00016438,2]
[351084668,1738329040300,-1436.84,0.00016438,2]
[351084669,1738329040309,-500.0,0.00016438,2]
[351084670,1738329040319,-1260.54,0.00016438,2]
[351084671,1738329040328,-500.0,0.00016438,2]
[351084672,1738329040338,-980.35,0.00016438,2]
[351084673,1738329040347,-715.99,0.00016438,2]
[351084674,1738329040357,-500.0,0.00016438,2]
[351084675,1738329040367,-475.59983042,0.00016438,2]
[351084676,1738329040379,-500.0,0.00016438,2]
[351084677,1738329040389,-500.0,0.00016438,2]
[351084678,1738329040399,-810.34,0.00016438,2]
[351084679,1738329040409,-506.51967141,0.00016438,2]
[351084680,1738329040419,-500.0,0.00016438,2]
[351084681,1738329040428,-843.3,0.00016438,2]
[351084682,1738329040438,-885.53,0.00016438,2]
[351084683,1738329040447,-500.0,0.00016438,2]
[351084684,1738329040457,-500.0,0.00016438,2]
[351084685,1738329040467,-946.66,0.00016438,2]
[351084686,1738329040477,-500.0,0.00016438,2]
[351084687,1738329040486,-500.0,0.00016438,2]
[351084688,1738329040496,-500.0,0.00016438,2]
[351084689,1738329040505,-802.32,0.00016438,2]
[351084690,1738329040515,-571.39442585,0.00016438,2]
[351084691,1738329040525,-500.0,0.00016438,2]
[351084692,1738329040534,-500.0,0.00016438,2]
[351084693,1738329040544,-500.0,0.00016438,2]
[351084694,1738329040554,-500.0,0.00016438,2]
[351084695,1738329040563,-1451.88,0.00016438,2]
[351084696,1738329040572,-500.0,0.00016438,2]
[351084697,1738329040582,-500.0,0.00016438,2]
[351084698,1738329040592,-500.0,0.00016438,2]
[351084699,1738329040601,-500.0,0.00016438,2]
[351084700,1738329040610,-500.0,0.00016438,2]
[351084701,1738329040622,-502.54,0.00016438,2]
[351084702,1738329040632,-500.0,0.00016438,2]
[351084703,1738329040641,-500.0,0.00016438,2]
[351084704,1738329040651,-500.0,0.00016438,2]
[351084705,1738329040660,-500.0,0.00016438,2]
[351084706,1738329040669,-500.0,0.00016438,2]
[351084707,1738329040679,-313.99970933,0.00016438,2]
[351084708,1738329040689,-500.0,0.00016438,2]
[351084709,1738329040698,-500.0,0.00016438,2]
[351084710,1738329040708,-500.0,0.00016438,2]
[351084711,1738329040775,-500.0,0.00016438,2]
[351084712,1738329040785,-500.0,0.00016438,2]
[351084713,1738329040795,-845.24,0.00016438,2]
[351084714,1738329040804,-647.17,0.00016438,2]
[351084715,1738329040814,-500.0,0.00016438,2]
[351084716,1738329040823,-500.0,0.00016438,2]
[351084717,1738329040833,-500.0,0.00016438,2]
[351084718,1738329040842,-500.0,0.00016438,2]
[351084719,1738329040852,-500.0,0.00016438,2]
[351084720,1738329040861,-698.25,0.00016438,2]
[351084721,1738329040874,-1165.58,0.00016438,2]
[351084722,1738329040883,-500.0,0.00016438,7]
[351084723,1738329040893,-866.15,0.00016438,2]
[351084724,1738329040903,-781.77,0.00016438,2]
[351084725,1738329040912,-500.0,0.00016438,2]
[351084726,1738329040922,-500.0,0.00016438,2]
[351084727,1738329040931,-700.77,0.00016438,2]
[351084728,1738329040941,-686.74,0.00016438,2]
[351084729,1738329040950,-817.83,0.00016438,2]
[351084730,1738329040960,-895.02,0.00016438,2]
[351084731,1738329040969,-500.0,0.00016438,2]
[351084732,1738329040979,-500.0,0.00016438,2]
[351084733,1738329040988,-500.0,0.00016438,2]
[351084734,1738329040998,-500.0,0.00016438,2]
[351084735,1738329041007,-554.73,0.00016438,2]
[351084736,1738329041016,-500.0,0.00016438,2]
[351084737,1738329041025,-500.0,0.00016438,2]
[351084738,1738329041035,-500.0,0.00016438,2]
[351084739,1738329041045,-500.0,0.00016438,2]
[351084740,1738329041054,-500.0,0.00016438,2]
[351084741,1738329041064,-500.0,0.00016438,2]
[351084742,1738329041074,-190.30869672,0.00016438,2]
[351084743,1738329041083,-500.0,0.00016438,2]
[351084744,1738329041093,-500.0,0.00016438,2]
[351084745,1738329041103,-500.0,0.00016438,2]
[351084746,1738329041116,-440.5142811,0.00016438,2]
[351084747,1738329041134,-761.12,0.00016438,2]
[351084748,1738329041143,-500.0,0.00016438,2]
[351084749,1738329041154,-500.0,0.00016438,2]
[351084750,1738329041164,-500.0,0.00016438,2]
[351084751,1738329041174,-500.0,0.00016438,2]
[351084752,1738329041183,-500.0,0.00016438,2]
[351084753,1738329041194,-772.48,0.00016438,2]
[351084754,1738329041205,-500.0,0.00016438,2]
[351084755,1738329041215,-500.0,0.00016438,2]
[351084756,1738329041224,-500.0,0.00016438,2]
[351084757,1738329041234,-500.0,0.00016438,2]
[351084758,1738329041244,-500.0,0.00016438,2]
[351084759,1738329041254,-500.0,0.00016438,2]
[351084760,1738329041263,-834.33,0.00016438,2]
[351084761,1738329041272,-500.0,0.00016438,2]
[351084762,1738329041283,-500.0,0.00016438,2]
[351084763,1738329041292,-500.0,0.00016438,2]
[351084764,1738329041302,-500.0,0.00016438,2]
[351084765,1738329041312,-600.91,0.00016438,2]
[351084766,1738329041322,-500.0,0.00016438,2]
[351084767,1738329041331,-821.05,0.00016438,2]
[351084768,1738329041340,-500.0,0.00016438,2]
[351084769,1738329041350,-500.0,0.00016438,2]
[351084770,1738329041359,-500.0,0.00016438,2]
[351084771,1738329041372,-500.32757117,0.00016438,2]
[351084772,1738329041382,-753.32,0.00016438,2]
[351084773,1738329041391,-500.0,0.00016438,2]
[351084774,1738329041400,-500.0,0.00016438,2]
[351084775,1738329041410,-719.94,0.00016438,2]
[351084776,1738329041419,-500.0,0.00016438,2]
[351084777,1738329041428,-500.0,0.00016438,2]
[351084778,1738329041438,-500.0,0.00016438,2]
[351084779,1738329041447,-500.0,0.00016438,2]
[351084780,1738329041456,-500.0,0.00016438,2]
[351084781,1738329041466,-500.0,0.00016438,2]
[351084782,1738329041475,-500.0,0.00016438,2]
[351084783,1738329041484,-500.0,0.00016438,2]
[351084784,1738329041494,-500.0,0.00016438,2]
[351084786,1738329041503,-528.69,0.00016438,2]
[351084787,1738329041513,-928.65,0.00016438,2]
[351084788,1738329041522,-1492.55,0.00016438,2]
[351084789,1738329041531,-500.0,0.00016438,2]
[351084790,1738329041540,-500.0,0.00016438,2]
[351084791,1738329041550,-667.48,0.00016438,2]
[351084792,1738329041559,-1144.46,0.00016438,2]
[351084793,1738329041568,-500.93545538,0.00016438,2]
[351084794,1738329041578,-500.0,0.00016438,2]
[351084795,1738329041587,-500.0,0.00016438,2]
[351084796,1738329041597,-500.0,0.00016438,2]
[351084797,1738329041606,-567.66,0.00016438,2]
[351084798,1738329041616,-1194.43,0.00016438,2]
[351084799,1738329041629,-500.0,0.00016438,2]
[351084800,1738329041638,-728.23,0.00016438,2]
[351084801,1738329041647,-1214.08,0.00016438,2]
[351084802,1738329041656,-517.44646095,0.00016438,2]
[351084803,1738329041665,-500.0,0.00016438,2]
[351084804,1738329041674,-500.0,0.00016438,2]
[351084805,1738329041683,-638.68,0.00016438,2]
[351084806,1738329041693,-500.0,0.00016438,2]
[351084807,1738329041703,-500.0,0.00016438,2]
[351084808,1738329041712,-607.29,0.00016438,2]
[351084809,1738329041721,-500.0,0.00016438,2]
[351084810,1738329041730,-615.06,0.00016438,2]
[351084811,1738329041739,-500.0,0.00016438,2]
[351084812,1738329041748,-500.0,0.00016438,2]
[351084813,1738329041757,-500.0,0.00016438,2]
[351084814,1738329041766,-645.52,0.00016438,2]
[351084815,1738329041776,-500.0,0.00016438,2]
[351084816,1738329041785,-519.51122819,0.00016438,2]
[351084817,1738329041794,-500.0,0.00016438,2]
[351084818,1738329041803,-500.0,0.00016438,2]
[351084819,1738329041813,-500.0,0.00016438,2]
[351084820,1738329041822,-1618.84,0.00016438,2]
[351084821,1738329041831,-500.0,0.00016438,2]
[351084822,1738329041840,-500.0,0.00016438,2]
[351084823,1738329041849,-500.0,0.00016438,2]
[351084824,1738329041858,-1486.85,0.00016438,2]
[351084825,1738329041867,-500.0,0.00016438,2]
[351084826,1738329041879,-500.0,0.00016438,2]
[351084828,1738329041888,-500.0,0.00016438,2]
[351084830,1738329041898,-500.0,0.00016438,2]
[351084832,1738329041907,-500.0,0.00016438,2]
[351084834,1738329041916,-500.0,0.00016438,2]
[351084836,1738329041925,-500.0,0.00016438,2]
[351084838,1738329041934,-500.0,0.00016438,2]
[351084839,1738329041943,-500.0,0.00016438,2]
[351084841,1738329041953,-500.0,0.00016438,2]
[351084844,1738329041962,-505.96456797,0.00016438,2]
[351084845,1738329041971,-500.0,0.00016438,2]
[351084847,1738329041980,-574.69,0.00016438,2]
[351084849,1738329041990,-500.0,0.00016438,2]
[351084852,1738329041999,-500.0,0.00016438,2]
[351084854,1738329042009,-500.0,0.00016438,2]
[351084855,1738329042018,-500.0,0.00016438,2]
[351084856,1738329042027,-500.0,0.00016438,2]
[351084857,1738329042036,-500.0,0.00016438,2]
[351084858,1738329042045,-500.0,0.00016438,2]
[351084859,1738329042054,-500.0,0.00016438,2]
[351084860,1738329042063,-500.0,0.00016438,2]
[351084861,1738329042073,-500.0,0.00016438,2]
[351084862,1738329042083,-500.0,0.00016438,2]
[351084863,1738329042093,-500.0,0.00016438,2]
[351084864,1738329042103,-500.0,0.00016438,2]
[351084865,1738329042113,-500.0,0.00016438,2]
[351084866,1738329042125,-500.0,0.00016438,2]
[351084867,1738329042134,-500.0,0.00016438,2]
[351084868,1738329042143,-586.51,0.00016438,2]
[351084869,1738329042152,-500.0,0.00016438,2]
[351084870,1738329042162,-970.42,0.00016438,2]
[351084871,1738329042171,-500.0,0.00016438,2]
[351084872,1738329042181,-500.0,0.00016438,2]
[351084873,1738329042190,-500.0,0.00016438,2]
[351084874,1738329042199,-636.84,0.00016438,2]
[351084875,1738329042209,-830.14,0.00016438,2]
[351084876,1738329042218,-500.0,0.00016438,2]
[351084877,1738329042227,-500.0,0.00016438,2]
[351084878,1738329042236,-1164.34,0.00016438,2]
[351084879,1738329042245,-452.83576256,0.00016438,2]
[351084880,1738329042254,-705.4,0.00016438,2]
[351084881,1738329042265,-500.0,0.00016438,2]
[351084882,1738329042274,-585.60331672,0.00016438,2]
[351084883,1738329042283,-500.0,0.00016438,2]
[351084884,1738329042292,-555.38,0.00016438,2]
[351084885,1738329042302,-500.0,0.00016438,2]
[351084886,1738329042311,-719.69,0.00016438,2]
[351084887,1738329042320,-500.0,0.00016438,2]
[351084888,1738329042329,-500.0,0.00016438,2]
[351084889,1738329042338,-531.00220943,0.00016438,2]
[351084890,1738329042347,-500.0,0.00016438,2]
[351084891,1738329042356,-500.0,0.00016438,2]
[351084892,1738329042366,-500.0,0.00016438,2]
[351084893,1738329042378,-644.17,0.00016438,2]
[351084894,1738329042388,-500.0,0.00016438,2]
[351084895,1738329042397,-500.0,0.00016438,2]
[351084896,1738329042407,-893.65,0.00016438,2]
[351084897,1738329042416,-500.0,0.00016438,2]
[351084898,1738329042425,-1287.67,0.00016438,2]
[351084899,1738329042434,-500.0,0.00016438,2]
[351084900,1738329042443,-500.0,0.00016438,2]
[351084901,1738329042453,-500.0,0.00016438,2]
[351084902,1738329042462,-500.0,0.00016438,2]
[351084903,1738329042471,-500.0,0.00016438,2]
[351084904,1738329042481,-500.0,0.00016438,2]
[351084905,1738329042490,-500.0,0.00016438,2]
[351084906,1738329042499,-500.0,0.00016438,2]
[351084907,1738329042509,-747.56,0.00016438,2]
[351084908,1738329042518,-500.0,0.00016438,2]
[351084909,1738329042527,-757.81,0.00016438,2]
[351084910,1738329042536,-500.0,0.00016438,2]
[351084913,1738329042545,-631.66654581,0.00016438,2]
[351084914,1738329042554,-500.0,0.00016438,2]
[351084915,1738329042563,-500.0,0.00016438,2]
[351084916,1738329042573,-500.0,0.00016438,2]
[351084917,1738329042582,-500.0,0.00016438,2]
[351084918,1738329042591,-500.0,0.00016438,2]
[351084919,1738329042600,-500.0,0.00016438,2]
[351084920,1738329042609,-500.0,0.00016438,2]
[351084921,1738329042618,-500.0,0.00016438,2]
[351084922,1738329042629,-500.0,0.00016438,2]
[351084923,1738329042638,-500.0,0.00016438,2]
[351084924,1738329042647,-703.48,0.00016438,2]
[351084925,1738329042656,-559.74,0.00016438,2]
[351084926,1738329042665,-1023.89,0.00016438,2]
[351084927,1738329042674,-500.0,0.00016438,2]
[351084928,1738329042683,-500.0,0.00016438,2]
[351084929,1738329042692,-500.0,0.00016438,2]
[351084930,1738329042701,-500.0,0.00016438,2]
[351084931,1738329042710,-500.0,0.00016438,2]
[351084932,1738329042720,-500.0,0.00016438,2]
[351084933,1738329042730,-500.0,0.00016438,2]
[351084934,1738329042739,-500.0,0.00016438,2]
[351084935,1738329042748,-500.0,0.00016438,2]
[351084936,1738329042758,-500.0,0.00016438,2]
[351084937,1738329042767,-897.9,0.00016438,2]
[351084938,1738329042776,-500.0,0.00016438,2]
[351084939,1738329042786,-562.98,0.00016438,2]
[351084940,1738329042795,-500.0,0.00016438,2]
[351084941,1738329042804,-656.95,0.00016438,2]
[351084942,1738329042814,-780.63,0.00016438,2]
[351084943,1738329042823,-757.01,0.00016438,2]
[351084944,1738329042832,-500.0,0.00016438,2]
[351084945,1738329042842,-500.0,0.00016438,2]
[351084946,1738329042851,-1307.84,0.00016438,2]
[351084947,1738329042860,-500.0,0.00016438,2]
[351084948,1738329042870,-409.23210003,0.00016438,2]
[351084949,1738329042879,-500.0,0.00016438,2]
[351084950,1738329042888,-500.0,0.00016438,2]
[351084951,1738329042897,-500.0,0.00016438,2]
[351084952,1738329042906,-500.0,0.00016438,2]
[351084953,1738329042915,-1276.28,0.00016438,2]
[351084954,1738329042924,-500.0,0.00016438,2]
[351084955,1738329042933,-500.0,0.00016438,2]
[351084956,1738329042942,-946.91,0.00016438,2]
[351084957,1738329042951,-500.0,0.00016438,2]
[351084958,1738329042960,-1506.86,0.00016438,2]
[351084959,1738329042969,-500.0,0.00016438,2]
[351084960,1738329042978,-500.0,0.00016438,2]
[351084961,1738329042987,-500.0,0.00016438,2]
[351084962,1738329042996,-913.16,0.00016438,2]
[351084963,1738329043005,-500.0,0.00016438,2]
[351084964,1738329043014,-500.0,0.00016438,2]
[351084965,1738329043025,-842.64,0.00016438,2]
[351084966,1738329043034,-500.0,0.00016438,2]
[351084967,1738329043044,-4700.11,0.00016438,2]
[351084968,1738329043054,-500.0,0.00016438,2]
[351084969,1738329043063,-500.0,0.00016438,2]
[351084970,1738329043072,-500.0,0.00016438,2]
[351084971,1738329043081,-500.0,0.00016438,2]
[351084972,1738329043090,-2679.05,0.00016438,2]
[351084973,1738329043099,-500.0,0.00016438,2]
[351084974,1738329043110,-500.0,0.00016438,2]
[351084975,1738329043124,-500.0,0.00016438,2]
[351084976,1738329043134,-832.31,0.00016438,2]
[351084977,1738329043144,-514.02212308,0.00016438,2]
[351084978,1738329043153,-602.0,0.00016438,2]
[351084979,1738329043163,-500.0,0.00016438,2]
[351084980,1738329043173,-1350.96,0.00016438,2]
[351084981,1738329043182,-500.0,0.00016438,2]
[351084982,1738329043191,-500.0,0.00016438,2]
[351084983,1738329043201,-1808.31,0.00016438,2]
[351084984,1738329043210,-500.0,0.00016438,2]
[351084985,1738329043220,-500.0,0.00016438,2]
[351084986,1738329043229,-500.0,0.00016438,2]
[351084987,1738329043239,-2639.36,0.00016438,2]
[351084988,1738329043250,-517.85,0.00016438,2]
[351084989,1738329043259,-1179.41,0.00016438,2]
[351084990,1738329043268,-500.0,0.00016438,2]
[351084991,1738329043278,-743.52,0.00016438,2]
[351084992,1738329043287,-1606.73,0.00016438,2]
[351084993,1738329043297,-500.0,0.00016438,2]
[351084994,1738329043306,-1623.99,0.00016438,2]
[351084995,1738329043315,-500.0,0.00016438,2]
[351084996,1738329043324,-1404.02,0.00016438,2]
[351084997,1738329043333,-500.0,0.00016438,2]
[351084998,1738329043342,-1372.88,0.00016438,2]
[351084999,1738329043351,-500.0,0.00016438,2]
[351085000,1738329043360,-500.0,0.00016438,2]
[351085001,1738329043369,-864.92,0.00016438,2]
[351085002,1738329043380,-500.0,0.00016438,2]
[351085003,1738329043390,-1077.4,0.00016438,2]
[351085004,1738329043399,-705.67,0.00016438,2]
[351085005,1738329043408,-185.32804393,0.00016438,2]
[351085006,1738329043418,-547.19,0.00016438,2]
[351085007,1738329043427,-500.0,0.00016438,2]
[351085008,1738329043436,-500.0,0.00016438,2]
[351085010,1738329043445,-540.12,0.00016438,2]
[351085012,1738329043454,-531.49,0.00016438,2]
[351085014,1738329043463,-500.0,0.00016438,2]
[351085016,1738329043473,-500.0,0.00016438,2]
[351085018,1738329043482,-2432.2,0.00016438,2]
[351085020,1738329043491,-1079.03,0.00016438,2]
[351085021,1738329043499,-500.0,0.00016438,2]
[351085023,1738329043509,-500.0,0.00016438,2]
[351085026,1738329043518,-500.0,0.00016438,2]
[351085028,1738329043527,-4651.18,0.00016438,2]
[351085030,1738329043536,-500.0,0.00016438,2]
[351085032,1738329043545,-500.0,0.00016438,2]
[351085034,1738329043555,-500.0,0.00016438,2]
[351085035,1738329043564,-1133.5,0.00016438,2]
[351085036,1738329043573,-500.0,0.00016438,2]
[351085037,1738329043582,-780.34,0.00016438,2]
[351085038,1738329043591,-500.0,0.00016438,2]
[351085039,1738329043600,-939.63,0.00016438,2]
[351085040,1738329043610,-500.0,0.00016438,2]
[351085041,1738329043619,-500.0,0.00016438,2]
[351085042,1738329043630,-968.83,0.00016438,2]
[351085043,1738329043639,-655.96,0.00016438,2]
[351085044,1738329043648,-788.07,0.00016438,2]
[351085045,1738329043657,-500.0,0.00016438,2]
[351085046,1738329043666,-500.0,0.00016438,2]
[351085047,1738329043675,-3928.65,0.00016438,2]
[351085048,1738329043684,-506.81306225,0.00016438,2]
[351085049,1738329043692,-500.0,0.00016438,2]
[351085050,1738329043701,-500.0,0.00016438,2]
[351085051,1738329043710,-530.52,0.00016438,2]
[351085052,1738329043719,-510.39903692,0.00016438,2]
[351085053,1738329043728,-538.41810195,0.00016438,2]
[351085054,1738329043736,-902.32,0.00016438,2]
[351085055,1738329043745,-1742.78,0.00016438,2]
[351085056,1738329043754,-500.0,0.00016438,2]
[351085057,1738329043763,-1011.06,0.00016438,2]
[351085058,1738329043772,-1067.01,0.00016438,2]
[351085059,1738329043782,-634.03,0.00016438,2]
[351085060,1738329043791,-1297.09,0.00016438,2]
[351085061,1738329043800,-500.0,0.00016438,2]
[351085062,1738329043809,-500.0,0.00016438,2]
[351085063,1738329043818,-2136.18,0.00016438,2]
[351085064,1738329043827,-514.26670981,0.00016438,2]
[351085065,1738329043836,-2196.67,0.00016438,2]
[351085066,1738329043844,-860.21,0.00016438,2]
[351085067,1738329043853,-500.0,0.00016438,2]
[351085068,1738329043862,-500.0,0.00016438,2]
[351085069,1738329043871,-500.0,0.00016438,2]
[351085070,1738329043882,-500.0,0.00016438,2]
[351085071,1738329043891,-2394.82,0.00016438,2]
[351085072,1738329043900,-500.0,0.00016438,2]
[351085073,1738329043909,-500.0,0.00016438,2]
[351085074,1738329043918,-910.7,0.00016438,2]
[351085075,1738329043927,-500.0,0.00016438,2]
[351085076,1738329043936,-822.68,0.00016438,2]
[351085077,1738329043945,-851.19,0.00016438,2]
[351085078,1738329043954,-289.75406214,0.00016438,2]
[351085079,1738329043963,-500.0,0.00016438,2]
[351085080,1738329043972,-1226.61,0.00016438,2]
[351085081,1738329043981,-500.0,0.00016438,2]
[351085082,1738329043990,-702.01,0.00016438,2]
[351085083,1738329043999,-1195.54,0.00016438,2]
[351085084,1738329044008,-914.12,0.00016438,2]
[351085085,1738329044018,-1799.07,0.00016438,2]
[351085086,1738329044027,-500.0,0.00016438,2]
[351085087,1738329044036,-402.03270368,0.00016438,2]
[351085088,1738329044045,-802.58,0.00016438,2]
[351085089,1738329044054,-1903.73,0.00016438,2]
[351085090,1738329044063,-595.06,0.00016438,2]
[351085091,1738329044071,-500.0,0.00016438,2]
[351085092,1738329044081,-532.27953626,0.00016438,2]
[351085093,1738329044090,-502.81089615,0.00016438,2]
[351085094,1738329044099,-500.0,0.00016438,2]
[351085095,1738329044108,-500.0,0.00016438,2]
[351085096,1738329044119,-500.0,0.00016438,2]
[351085097,1738329044130,-743.87,0.00016438,2]
[351085098,1738329044139,-500.0,0.00016438,2]
[351085099,1738329044148,-500.0,0.00016438,2]
[351085100,1738329044158,-500.0,0.00016438,2]
[351085101,1738329044167,-500.0,0.00016438,2]
[351085102,1738329044175,-500.0,0.00016438,2]
[351085103,1738329044185,-500.0,0.00016438,2]
[351085104,1738329044194,-460.21654168,0.00016438,2]
[351085105,1738329044204,-949.43,0.00016438,2]
[351085106,1738329044213,-1357.44,0.00016438,2]
[351085107,1738329044222,-500.0,0.00016438,2]
[351085108,1738329044231,-500.0,0.00016438,2]
[351085109,1738329044240,-500.0,0.00016438,2]
[351085110,1738329044249,-1613.89,0.00016438,2]
[351085111,1738329044258,-500.0,0.00016438,2]
[351085112,1738329044267,-2316.42,0.00016438,2]
[351085113,1738329044276,-500.0,0.00016438,2]
[351085114,1738329044285,-500.0,0.00016438,2]
[351085115,1738329044294,-500.0,0.00016438,2]
[351085116,1738329044304,-1521.07,0.00016438,2]
[351085117,1738329044313,-4073.26,0.00016438,2]
[351085118,1738329044322,-970.37,0.00016438,2]
[351085119,1738329044332,-1336.87,0.00016438,2]
[351085120,1738329044341,-375.17817605,0.00016438,2]
[351085121,1738329044350,-500.0,0.00016438,2]
[351085122,1738329044359,-940.15,0.00016438,2]
[351085123,1738329044368,-500.0,0.00016438,2]
[351085124,1738329044379,-748.5,0.00016438,2]
[351085125,1738329044388,-1719.95,0.00016438,2]
[351085126,1738329044398,-500.0,0.00016438,2]
[351085127,1738329044407,-2592.1,0.00016438,2]
[351085128,1738329044417,-500.0,0.00016438,2]
[351085129,1738329044428,-500.0,0.00016438,2]
[351085130,1738329044437,-691.44,0.00016438,2]
[351085131,1738329044446,-500.0,0.00016438,2]
[351085132,1738329044455,-500.0,0.00016438,2]
[351085133,1738329044464,-1294.35,0.00016438,2]
[351085134,1738329044474,-503.29058409,0.00016438,2]
[351085135,1738329044483,-531.85,0.00016438,2]
[351085136,1738329044492,-355.88253228,0.00016438,2]
[351085137,1738329044501,-500.0,0.00016438,2]
[351085138,1738329044510,-500.0,0.00016438,2]
[351085139,1738329044519,-1767.81,0.00016438,2]
[351085140,1738329044528,-846.99,0.00016438,2]
[351085141,1738329044537,-500.0,0.00016438,2]
[351085142,1738329044547,-970.18,0.00016438,2]
[351085143,1738329044556,-500.0,0.00016438,2]
[351085144,1738329044566,-500.0,0.00016438,2]
[351085145,1738329044575,-500.0,0.00016438,2]
[351085146,1738329044585,-759.68,0.00016438,2]
[351085147,1738329044595,-951.55,0.00016438,2]
[351085148,1738329044608,-2923.5,0.00016438,2]
[351085149,1738329044620,-2217.75,0.00016438,2]